fUSD/lending_fUSD_20260314
["ID","MTS","AMOUNT","RATE_DAILY","PERIOD"]
[408337968,1773446544951,-5000.00529252,0.000162,5]
[408337969,1773446544980,-150.0,0.000164,2]
[408337970,1773446545014,-213.0,0.000164,2]
[408337971,1773446545041,-405.44300505,0.000164,2]
[408337972,1773446545069,-151.30098555,0.000199,2]
[408337973,1773446545096,-1200.0,0.00019949,2]
[408337974,1773446545121,-183099.33775062,0.0001995,15]
[408337975,1773446545148,-1398009.1366749,0.0002,2]
[408337976,1773446551921,360.79741625,0.0001901,7]
[408337977,1773446558621,256.01062148,0.000171,2]
[408337978,1773446620238,10145.84683209,0.000171,2]
[408337982,1773446846129,-300.0,0.00020255,2]
[408337983,1773446846150,-281.2075308,0.00020256,2]
[408337984,1773446881293,4612.43417322,0.00022282,120]
[408337985,1773446949636,368.34,0.00032679,120]
[408337996,1773447032117,-267.32899066,0.00020155,2]
[408337997,1773447032128,-326.0,0.00020155,2]
[408337998,1773447032287,-412.03498254,0.00020252,2]
[408337999,1773447032307,-417.95893621,0.00020252,2]
[408338000,1773447032319,-389.34688925,0.00020252,2]
[408338001,1773447032329,-110.65311075,0.00020254,2]
[408338003,1773447032366,-1089.34688925,0.00020254,2]
[408338005,1773447032375,-1200.910478,0.00020255,2]
[408338006,1773447032391,-284.15203215,0.00020255,2]
[408338007,1773447032412,-1014.93748985,0.00020255,2]
[408338008,1773447032423,-195.0,0.00020255,2]
[408338009,1773447032433,-244.62995324,0.00020256,2]
[408338010,1773447032443,-98.41255691,0.00020256,2]
[408338011,1773447032456,-151.58744309,0.00020256,2]
[408338012,1773447032466,-289.41103785,0.00020256,2]
[408338013,1773447032476,-346.7549148,0.00020256,2]
[408338014,1773447032575,-110.58702844,0.00020256,2]
[408338015,1773447032585,-19.9548697,0.00020256,2]
[408338016,1773447032595,-16514.8712403,0.00020256,2]
[408338017,1773447032605,-643.0,0.00020551,2]
[408338018,1773447032615,-2500.0,0.00020552,2]
[408338019,1773447032624,-2500.0,0.00020552,2]
[408338020,1773447032633,-2500.0,0.00020552,2]
[408338021,1773447032643,-195.0,0.00020552,2]
[408338022,1773447032652,-195.0,0.00020552,2]
[408338023,1773447032662,-200.80539257,0.00020552,2]
[408338024,1773447032672,-503.62365554,0.00020947,2]
[408338025,1773447032682,-157.49,0.00021047,2]
[408338026,1773447032692,-2304.79084858,0.00021595,2]
[408338027,1773447032703,-1640.67172989,0.00021595,2]
[408338028,1773447032717,-947.33742153,0.00021595,2]
[408338029,1773447032727,-847.14008178,0.00022155,2]
[408338033,1773447038463,-832.85991822,0.00022155,2]
[408338034,1773447038472,-168.40204226,0.00022281,2]
[408338035,1773447038484,-431.59795774,0.00022281,2]
[408338036,1773447038494,-250.0,0.00022281,2]
[408338037,1773447038503,-300.0,0.00022281,2]
[408338038,1773447038513,-500.0,0.00022281,2]
[408338039,1773447038523,-300.0,0.00022281,2]
[408338040,1773447038535,-85.76338027,0.00022281,2]
[408338041,1773447038549,-1895.51665775,0.00022281,2]
[408338042,1773447038560,-518.71996198,0.00022281,2]
[408338043,1773447038571,-195.0,0.00022281,2]
[408338044,1773447038582,-193.0,0.00022281,2]
[408338045,1773447038592,-250.0,0.00022282,2]
[408338046,1773447038606,-153.85,0.00022392,5]
[408338047,1773447038616,-153.85,0.00022392,5]
[408338048,1773447038626,-153.85,0.00022392,5]
[408338049,1773447038636,-1219.340808,0.00022882,2]
[408338050,1773447038646,-188.70030793,0.00022932,2]
[408338051,1773447038656,-301.1624005,0.00022943,2]
[408338052,1773447038666,-4192.52652159,0.00022943,2]
[408338053,1773447038681,-8103.13800714,0.00022943,2]
[408338060,1773447040427,-569.0,0.00022943,2]
[408338074,1773447043274,-707.48499536,0.00022943,2]
[408338075,1773447043571,-2942.72171621,0.00022943,2]
[408338078,1773447043582,-500.0,0.00023004,2]
[408338080,1773447043591,-200.0,0.000232,2]
[408338081,1773447043601,-3494.86,0.00023207,2]
[408338083,1773447043611,-111.28834092,0.00023299,2]
[408338097,1773447046227,-42.56165908,0.00023299,2]
[408338098,1773447046237,-153.85,0.00023299,2]
[408338099,1773447046247,-153.85,0.00023299,2]
[408338100,1773447046256,-153.85,0.00023299,2]
[408338101,1773447046266,-153.85,0.00023299,2]
[408338102,1773447046275,-150.0,0.000235,14]
[408338103,1773447046285,-157.49,0.00024053,2]
[408338104,1773447046294,-1943.0,0.00024233,2]
[408338105,1773447046305,-1219.340808,0.00025512,2]
[408338106,1773447046314,-301.1624005,0.0002563,2]
[408338107,1773447046325,-7540.22907278,0.0002563,2]
[408338108,1773447046363,-632.162886,0.0002563,2]
[408338118,1773447611897,158.58,0.0003261,120]
[408338119,1773447612579,158.58,0.0003261,120]
[408338120,1773447613364,158.58,0.0003261,120]
[408338121,1773447614131,158.58,0.0003261,120]
[408338150,1773448146145,-250.0,0.00015,2]
[408338151,1773448146166,-240.01143245,0.00015175,2]
[408338152,1773448146187,-580.84872965,0.0001535,2]
[408338153,1773448146208,-302.35737128,0.000157,2]
[408338154,1773448146228,-250.31395653,0.000164,2]
[408338155,1773448146250,-1200.0,0.00016499,2]
[408338156,1773448146280,-195.0,0.000165,2]
[408338157,1773448146300,-300.0,0.000165,2]
[408338158,1773448146320,-500.0,0.000165,2]
[408338159,1773448146340,-250.0,0.000165,2]
[408338160,1773448146360,-250.0,0.000165,2]
[408338161,1773448146382,-300.0,0.000165,2]
[408338162,1773448146401,-144.74489724,0.00017,2]
[408338163,1773448153140,-214.28749527,0.000165,2]
[408338176,1773448231392,-743.0,0.00016499,2]
[408338177,1773448231403,-378.26398461,0.000165,2]
[408338178,1773448231413,-500.0,0.000165,2]
[408338179,1773448231423,-1450.55482765,0.000165,2]
[408338180,1773448231516,-427.8398763,0.000165,2]
[408338183,1773448231528,-299.25807466,0.000167,2]
[408338185,1773448231538,-155.25510276,0.00017,2]
[408338187,1773448231548,-288.67580439,0.00017808,2]
[408338190,1773448231558,-250.0,0.00018149,2]
[408338193,1773448231572,-350.0,0.00019,2]
[408338196,1773448231581,-158.58,0.00020068,5]
[408338199,1773448231591,-158.58,0.00020068,5]
[408338202,1773448231600,-353.1764,0.00020156,2]
[408338204,1773448231610,-9197.54,0.00021595,2]
[408338207,1773448231619,-12785.2439,0.00022743,2]
[408338212,1773448231633,-160.0,0.00022766,2]
[408338214,1773448231641,-500.0,0.00022873,2]
[408338217,1773448231651,-504.09482637,0.00022873,2]
[408338219,1773448231660,-500.0,0.00022873,2]
[408338221,1773448231669,-246.9785191,0.00023132,2]
[408338223,1773448231679,-150.5812002,0.00023132,2]
[408338225,1773448231688,-2189.8924702,0.00023132,2]
[408338227,1773448231697,-150.5812003,0.00023132,2]
[408338229,1773448231706,-6214.3376305,0.00023132,2]
[408338231,1773448231716,-158.58,0.00023168,2]
[408338233,1773448231726,-158.58,0.00023168,2]
[408338235,1773448231735,-158.58,0.00023168,2]
[408338237,1773448231745,-150.0,0.000232,14]
[408338238,1773448231755,-6569.68,0.00023207,2]
[408338239,1773448231766,-500.0,0.00023421,2]
[408338240,1773448231777,-870.97,0.00024658,2]
[408338241,1773448231786,-200.0,0.00025144,2]
[408338242,1773448231796,-500.0,0.00025253,2]
[408338243,1773448231805,-200.0,0.00026019,2]
[408338244,1773448231815,-6214.3376305,0.00026113,2]
[408338245,1773448231824,-2189.8924702,0.00026158,2]
[408338246,1773448231834,-246.9785191,0.00026163,2]
[408338247,1773448231843,-500.0,0.00026447,2]
[408338248,1773448231852,-157.49,0.0002706,2]
[408338249,1773448231862,-500.0,0.00027373,2]
[408338250,1773448231871,-500.0,0.00027373,2]
[408338251,1773448231881,-3267.56,0.00027397,10]
[408338252,1773448231890,-9999.99,0.00027397,2]
[408338253,1773448231899,-9336.88,0.00027397,20]
[408338254,1773448231909,-430.52,0.00027397,2]
[408338255,1773448231918,-516.89,0.00027397,2]
[408338256,1773448231927,-9999.99,0.00027397,2]
[408338257,1773448231936,-15160.3395869,0.00027397,10]
[408338258,1773448231948,-8786.74756116,0.00027397,10]
[408338259,1773448231959,-14454.73285194,0.00027397,10]
[408338260,1773448231968,-4999.99,0.00027397,2]
[408338261,1773448231977,-5339.1,0.00027397,2]
[408338262,1773448231987,-1443.96,0.00027397,2]
[408338263,1773448231996,-4406.63,0.00027397,2]
[408338264,1773448232005,-150.99,0.00027397,2]
[408338265,1773448232014,-870.97,0.00027605,2]
[408338266,1773448232023,-1584.0,0.00027753,2]
[408338267,1773448232032,-1000.0,0.00027921,5]
[408338268,1773448232042,-410.39807424,0.00027921,5]
[408338269,1773448232051,-500.0,0.0002794,5]
[408338270,1773448232061,-767.66955765,0.00028043,2]
[408338271,1773448232070,-330.27342068,0.00028428,5]
[408338272,1773448232079,-1500.0,0.00028468,5]
[408338273,1773448232088,-500.0,0.00028911,5]
[408338274,1773448232097,-163.73,0.0002899,2]
[408338275,1773448232107,-163.73,0.0002899,2]
[408338276,1773448232117,-55165.68804599,0.00029,7]
[408338277,1773448232130,-76292.71299498,0.00029,7]
[408338286,1773448237481,-250.0,0.000289,2]
[408338287,1773448237491,-1069.07783769,0.00029,7]
[408338288,1773448237502,-6361.38820971,0.00029,7]
[408338296,1773448239649,-19999.75500897,0.00029,7]
[408338299,1773448242496,-291.69315682,0.00029,7]
[408338305,1773448245398,-650.00008768,0.00029,7]
[408338310,1773448810475,529.91,0.00025,120]
[408338311,1773448995702,469.88636022,0.00015161,2]
[408338317,1773449356155,-7933.09363978,0.00015161,2]
[408338318,1773449356176,-1200.0,0.00015315,2]
[408338319,1773449356196,-156.95,0.00015316,2]
[408338320,1773449356218,-156.95,0.00016494,2]
[408338321,1773449356239,-156.95,0.00017672,2]
[408338322,1773449356259,-109.93111771,0.0001885,2]
[408338328,1773449431445,-47.01888229,0.0001885,2]
[408338329,1773449431455,-156.95,0.00020028,2]
[408338330,1773449431466,-156.95,0.00021207,2]
[408338332,1773449431475,-122.8687981,0.00022385,2]
[408338337,1773449431655,-34.0812019,0.00022385,2]
[408338338,1773449431667,-171.96232106,0.000226,2]
[408338339,1773449431677,-200.0,0.00022729,2]
[408338340,1773449431686,-151.0,0.00022729,2]
[408338341,1773449431696,-151.0,0.00022729,2]
[408338342,1773449431706,-2000.0,0.00023,2]
[408338344,1773449431716,-150.0,0.000232,14]
[408338345,1773449431726,-156.95,0.00023563,2]
[408338346,1773449431736,-1200.0,0.00023969,2]
[408338347,1773449431745,-300.0,0.00023969,2]
[408338348,1773449431754,-1000.0,0.0002397,2]
[408338349,1773449431763,-1956.7780659,0.0002397,2]
[408338350,1773449431773,-500.0,0.0002425,2]
[408338351,1773449431783,-500.0,0.0002425,2]
[408338352,1773449431792,-156.95,0.00024741,2]
[408338353,1773449431803,-1000.0,0.00024798,2]
[408338354,1773449431812,-1000.0,0.0002557,2]
[408338355,1773449431822,-156.95,0.00025919,2]
[408338356,1773449431833,-420.0,0.00025994,2]
[408338357,1773449431843,-177.0,0.00026113,2]
[408338358,1773449431853,-302.19,0.00026417,2]
[408338359,1773449431866,-2000.0,0.000267,2]
[408338360,1773449431875,-6484.77563549,0.00027016,2]
[408338361,1773449431964,-9354.3354851,0.00027016,2]
[408338362,1773449431975,-3835.42647995,0.00027016,2]
[408338363,1773449437671,-4456.63362279,0.00027016,2]
[408338364,1773449437683,-1907.85342441,0.00027016,2]
[408338365,1773449437694,-31.72775226,0.00027016,2]
[408338366,1773449437704,-156.95,0.00027097,2]
[408338367,1773449437714,-264.59860084,0.00027116,2]
[408338395,1773449442928,-17456.93139916,0.00027116,2]
[408338396,1773449442937,-300.0,0.00027173,2]
[408338397,1773449442947,-7841.36,0.00027397,2]
[408338398,1773449442958,-150.99,0.00027397,2]
[408338399,1773449442967,-500.0,0.00027452,2]
[408338400,1773449442978,-522.27,0.00027739,2]
[408338401,1773449442988,-150.5812003,0.0002786,2]
[408338402,1773449442997,-2196.17,0.00027993,2]
[408338403,1773449443007,-364.3289673,0.0002804,5]
[408338404,1773449443016,-157.49,0.00028079,2]
[408338405,1773449443026,-304.835202,0.00028173,2]
[408338406,1773449443035,-150.5812002,0.00028173,2]
[408338407,1773449443044,-1218.4354946,0.00028173,2]
[408338408,1773449443055,-3107.1688153,0.00028173,2]
[408338409,1773449443064,-587.0,0.0002819,2]
[408338410,1773449443074,-156.95,0.00028275,2]
[408338411,1773449443083,-1000.0,0.00028357,20]
[408338413,1773449443092,-223.96,0.00028547,2]
[408338415,1773449443102,-150.0,0.000289,2]
[408338417,1773449443112,-473.16883565,0.0002897,2]
[408338418,1773449443121,-1000.0,0.0002897,2]
[408338420,1773449443130,-500.0,0.0002899,10]
[408338422,1773449443139,-90185.68465816,0.00029,7]
[408338424,1773449443148,-815.2704072,0.00029002,2]
[408338426,1773449443157,-6475.82382013,0.00029102,2]
[408338433,1773449445544,-4666.75617987,0.00029102,2]
[408338434,1773449445554,-156.95,0.00029454,2]
[408338435,1773449445564,-157.49,0.00029792,2]
[408338436,1773449445574,-506.0,0.00029877,2]
[408338437,1773449445583,-157.49,0.00030067,2]
[408338438,1773449445592,-2000.0,0.000304,2]
[408338439,1773449445601,-166.66,0.00030455,30]
[408338440,1773449445613,-848.0,0.00030486,3]
[408338441,1773449445622,-870.97,0.00030552,2]
[408338442,1773449445631,-823.0,0.00030571,2]
[408338443,1773449445640,-156.95,0.00030632,2]
[408338444,1773449445650,-300.0,0.00030797,2]
[408338445,1773449445660,-809.72659302,0.00030955,30]
[408338446,1773449445677,-14109.98707472,0.00030955,30]
[408338450,1773449449790,151.0,0.00014634,2]
[408338451,1773449450594,151.0,0.00014634,2]
[408338452,1773449466281,151.0,0.00014634,2]
[408338453,1773449467113,500.0,0.00032073,120]
[408338454,1773449483095,16.88636022,0.00014634,2]
[408338455,1773449483116,134.11363978,0.00014634,2]
[408338456,1773449499869,151.0,0.00014634,2]
[408338457,1773449500181,500.0,0.00032073,120]
[408338458,1773449516442,500.0,0.00032073,120]
[408338459,1773449519511,184.77272044,0.00015,2]
[408338460,1773449519539,65.22727956,0.00015,2]
[408338462,1773449856073,3240.0,0.00030468,120]
[408338463,1773449985461,1259.06,0.00029869,120]
[408338473,1773450276303,166.35,0.0001428,2]
[408338474,1773450334143,-265.9272966,0.00016,2]
[408338475,1773450338740,-366.70880056,0.00016,2]
[408338480,1773450438082,-300.0,0.00016172,2]
[408338481,1773450438105,-281.21087742,0.00016199,2]
[408338485,1773450547071,-1002.08186317,0.00016199,2]
[408338486,1773450547093,-918.78912258,0.00016199,2]
[408338487,1773450547114,-550.0,0.00016199,2]
[408338488,1773450547135,-35233.28347425,0.000162,5]
[408338489,1773450558101,-31191.88532706,0.000162,5]
[408338490,1773450624263,-1200.0,0.00016199,2]
[408338491,1773450624289,-41598.57755814,0.000162,5]
[408338492,1773450626233,308.86589156,0.000152,2]
[408338498,1773450631669,-150.0,0.000164,2]
[408338499,1773450631679,-213.0,0.000164,2]
[408338500,1773450631689,-405.44300505,0.000164,2]
[408338501,1773450631699,-500.0,0.00016973,2]
[408338502,1773450631709,-500.0,0.00016973,2]
[408338503,1773450631719,-500.0,0.00016973,2]
[408338504,1773450631729,-500.0,0.00016973,2]
[408338505,1773450631739,-500.0,0.00016973,2]
[408338506,1773450631749,-500.0,0.00016973,2]
[408338507,1773450631758,-500.0,0.00016973,2]
[408338508,1773450631768,-500.26320598,0.00016973,2]
[408338509,1773450631777,-500.0,0.00016973,2]
[408338510,1773450631787,-167.27959726,0.00016973,2]
[408338511,1773450631797,-500.0,0.00016973,2]
[408338512,1773450631808,-500.0,0.00016973,2]
[408338513,1773450631817,-502.82313972,0.00016973,2]
[408338514,1773450631826,-500.0,0.00016973,2]
[408338515,1773450631836,-500.0,0.00016973,2]
[408338516,1773450631845,-500.59506697,0.00016973,2]
[408338517,1773450631859,-51421.60042228,0.00017,2]
[408338518,1773450631868,-10145.84683209,0.000171,2]
[408338519,1773450631878,-4681.98995184,0.000171,2]
[408338520,1773450631888,-500.0,0.00017521,2]
[408338522,1773450631897,-1000.0,0.00017521,2]
[408338523,1773450631907,-637.38342981,0.00017521,2]
[408338525,1773450631917,-786.94121111,0.000177,2]
[408338528,1773450631927,-332.86,0.00017747,2]
[408338529,1773450631936,-1680.0,0.00017796,2]
[408338530,1773450631946,-321.58196775,0.00017819,2]
[408338532,1773450631956,-1229.37027411,0.0001789,2]
[408338534,1773450631966,-1077.2668438,0.0001789,2]
[408338536,1773450631975,-500.0,0.00017973,2]
[408338538,1773450631986,-500.0,0.00017973,2]
[408338539,1773450631996,-500.0,0.00017973,2]
[408338540,1773450632007,-517.11782635,0.00017973,2]
[408338541,1773450632016,-565.36741899,0.00017973,2]
[408338542,1773450632026,-500.22378811,0.00017973,2]
[408338543,1773450632035,-500.0,0.00017973,2]
[408338544,1773450632049,-166.29390804,0.00017973,2]
[408338545,1773450632061,-500.0,0.00017973,2]
[408338546,1773450632071,-500.0,0.00017973,2]
[408338547,1773450632080,-500.23347102,0.00017973,2]
[408338548,1773450632089,-163.84517834,0.00017973,2]
[408338549,1773450632299,-500.0,0.00017973,2]
[408338550,1773450632311,-500.42197752,0.00017973,2]
[408338551,1773450632321,-500.0,0.00017973,2]
[408338552,1773450632331,-500.0,0.00017973,2]
[408338553,1773450632342,-416.10566368,0.00017973,2]
[408338554,1773450632353,-556.31365803,0.00017973,2]
[408338555,1773450632363,-500.0,0.00017973,2]
[408338556,1773450632373,-500.0,0.00017973,2]
[408338557,1773450632394,-500.0,0.00017973,2]
[408338558,1773450632404,-596.86183762,0.00017973,2]
[408338559,1773450632414,-500.0,0.00017973,2]
[408338560,1773450632425,-500.0,0.00017973,2]
[408338561,1773450632435,-500.0,0.00017973,2]
[408338562,1773450632445,-162.53198372,0.00017973,2]
[408338563,1773450632454,-151.0,0.00017973,2]
[408338564,1773450632464,-151.0,0.00017973,2]
[408338565,1773450632474,-151.0,0.00017973,2]
[408338566,1773450632484,-153.699794,0.00017973,2]
[408338567,1773450632494,-761.992188,0.00017973,2]
[408338568,1773450632504,-761.992188,0.00017973,2]
[408338569,1773450632514,-761.992188,0.00017973,2]
[408338570,1773450632524,-761.992188,0.00017973,2]
[408338571,1773450632534,-151.0,0.00017973,2]
[408338572,1773450632544,-151.0,0.00017973,2]
[408338573,1773450632553,-151.0,0.00017973,2]
[408338574,1773450632563,-10752.28485966,0.00018,2]
[408338575,1773450632573,-151.0,0.00018,2]
[408338576,1773450632583,-151.0,0.00018,2]
[408338577,1773450632593,-1832.67137,0.00018,2]
[408338578,1773450632603,-1832.67137,0.00018,2]
[408338579,1773450632612,-1832.67137,0.00018,2]
[408338580,1773450632622,-1832.67137,0.00018,2]
[408338581,1773450632632,-717.042607,0.00018,2]
[408338582,1773450632642,-355.617915,0.00018,2]
[408338583,1773450632653,-717.042607,0.00018,2]
[408338584,1773450632663,-355.617915,0.00018,2]
[408338585,1773450632673,-717.042607,0.00018,2]
[408338586,1773450632683,-355.617915,0.00018,2]
[408338587,1773450632693,-717.042607,0.00018,2]
[408338588,1773450632703,-355.617915,0.00018,2]
[408338589,1773450632714,-926.815052,0.00018,2]
[408338590,1773450632724,-926.815052,0.00018,2]
[408338591,1773450632734,-926.815052,0.00018,2]
[408338592,1773450632743,-926.815052,0.00018,2]
[408338593,1773450632752,-151.0,0.00018,2]
[408338594,1773450632765,-151.0,0.00018,2]
[408338595,1773450632775,-500.0,0.00018172,2]
[408338596,1773450632785,-157.664047,0.00018493,2]
[408338597,1773450632795,-157.664047,0.00018493,2]
[408338598,1773450632805,-1000.0,0.00018521,2]
[408338599,1773450632815,-1000.0,0.00018521,2]
[408338600,1773450632825,-151.0,0.00018521,2]
[408338601,1773450632834,-151.0,0.00018521,2]
[408338602,1773450632844,-151.0,0.00018521,2]
[408338603,1773450632853,-761.992188,0.00018521,2]
[408338604,1773450632863,-761.992188,0.00018521,2]
[408338605,1773450632873,-761.992188,0.00018521,2]
[408338606,1773450632882,-761.992188,0.00018521,2]
[408338607,1773450632892,-151.0,0.00018521,2]
[408338608,1773450632902,-332.86,0.00018634,2]
[408338609,1773450632912,-200.0,0.0001875,2]
[408338610,1773450632923,-151.0,0.00018767,2]
[408338611,1773450632933,-177.877144,0.00018767,2]
[408338612,1773450632942,-177.877144,0.00018767,2]
[408338613,1773450632952,-177.877144,0.00018767,2]
[408338614,1773450632962,-177.877144,0.00018767,2]
[408338615,1773450632972,-4026.59927618,0.000188,2]
[408338616,1773450632981,-492.69437203,0.00018873,2]
[408338617,1773450632991,-500.0,0.00018873,2]
[408338618,1773450633000,-500.0,0.00018873,2]
[408338619,1773450633009,-500.0,0.00018873,2]
[408338620,1773450633019,-500.44634053,0.00018873,2]
[408338621,1773450633028,-28021.59403543,0.000189,2]
[408338622,1773450633042,-35283.09847224,0.000189,2]
[408338623,1773450633053,-10429.35393462,0.000189,2]
[408338624,1773450633063,-151.0,0.000189,2]
[408338625,1773450633072,-177.877144,0.000189,2]
[408338626,1773450633082,-177.877144,0.000189,2]
[408338627,1773450633091,-177.877144,0.000189,2]
[408338628,1773450633100,-177.877144,0.000189,2]
[408338629,1773450633110,-151.0,0.000189,2]
[408338630,1773450633119,-151.0,0.000189,2]
[408338631,1773450633128,-157.664047,0.000189,2]
[408338632,1773450633142,-157.664047,0.000189,2]
[408338633,1773450633152,-157.664047,0.000189,2]
[408338634,1773450633162,-1832.67137,0.000189,2]
[408338635,1773450633172,-1832.67137,0.000189,2]
[408338636,1773450633182,-1832.67137,0.000189,2]
[408338637,1773450633193,-1832.67137,0.000189,2]
[408338638,1773450633202,-717.042607,0.000189,2]
[408338639,1773450633220,-355.617915,0.000189,2]
[408338640,1773450633230,-717.042607,0.000189,2]
[408338641,1773450633240,-355.617915,0.000189,2]
[408338642,1773450633250,-717.042607,0.000189,2]
[408338643,1773450633260,-355.617915,0.000189,2]
[408338644,1773450633270,-717.042607,0.000189,2]
[408338645,1773450633283,-355.617915,0.000189,2]
[408338646,1773450633292,-926.815052,0.000189,2]
[408338647,1773450633302,-926.815052,0.000189,2]
[408338648,1773450633311,-926.815052,0.000189,2]
[408338649,1773450633322,-926.815052,0.000189,2]
[408338650,1773450633331,-151.0,0.000189,2]
[408338651,1773450633341,-151.0,0.000189,2]
[408338652,1773450633351,-204.106821,0.000189,2]
[408338653,1773450633361,-761.992188,0.000189,2]
[408338654,1773450633371,-761.992188,0.000189,2]
[408338655,1773450633381,-761.992188,0.000189,2]
[408338656,1773450633391,-761.992188,0.000189,2]
[408338657,1773450633400,-151.0,0.000189,2]
[408338658,1773450633410,-151.0,0.000189,2]
[408338659,1773450633419,-2171.34160843,0.00019,2]
[408338660,1773450633428,-360.79741625,0.0001901,7]
[408338661,1773450633439,-1500.0,0.00019068,2]
[408338662,1773450633449,-500.0,0.00019068,2]
[408338663,1773450633458,-900.80049589,0.00019078,2]
[408338664,1773450633467,-1015.40107621,0.000191,2]
[408338665,1773450633476,-163.73,0.00019168,2]
[408338666,1773450633486,-151.0,0.00019178,2]
[408338667,1773450633495,-3102.672497,0.00019178,2]
[408338668,1773450633505,-3102.672497,0.00019178,2]
[408338669,1773450633514,-3102.672497,0.00019178,2]
[408338670,1773450633523,-3102.672497,0.00019178,2]
[408338671,1773450633536,-3102.672497,0.00019178,2]
[408338672,1773450633545,-3102.672497,0.00019178,2]
[408338673,1773450633555,-3102.672497,0.00019178,2]
[408338674,1773450633564,-2341.30440495,0.00019178,2]
[408338675,1773450633586,-151.0,0.000189,2]
[408338676,1773450633596,-182.32,0.00019178,2]
[408338677,1773450633607,-579.04809205,0.00019178,2]
[408338678,1773450633616,-175.023449,0.00019178,2]
[408338679,1773450633625,-175.023449,0.00019178,2]
[408338680,1773450633635,-175.023449,0.00019178,2]
[408338681,1773450633644,-175.023449,0.00019178,2]
[408338682,1773450633653,-175.023449,0.00019178,2]
[408338683,1773450633663,-175.023449,0.00019178,2]
[408338684,1773450633673,-175.023449,0.00019178,2]
[408338685,1773450633683,-175.023449,0.00019178,2]
[408338686,1773450633692,-175.023449,0.00019178,2]
[408338687,1773450633702,-175.023449,0.00019178,2]
[408338688,1773450633712,-175.023449,0.00019178,2]
[408338689,1773450633725,-175.023449,0.00019178,2]
[408338690,1773450633734,-175.023449,0.00019178,2]
[408338691,1773450633744,-175.023449,0.00019178,2]
[408338692,1773450633753,-175.023449,0.00019178,2]
[408338693,1773450633762,-175.023449,0.00019178,2]
[408338694,1773450633772,-761.55080715,0.000192,2]
[408338695,1773450633781,-761.55080714,0.000192,2]
[408338696,1773450633791,-761.55080714,0.000192,2]
[408338697,1773450633800,-761.55080714,0.000192,2]
[408338698,1773450633809,-332.86,0.00019522,2]
[408338699,1773450633819,-151.0,0.00019551,2]
[408338700,1773450633828,-287.242674,0.00019551,2]
[408338701,1773450633839,-761.992188,0.00019551,2]
[408338702,1773450633849,-761.992188,0.00019551,2]
[408338703,1773450633860,-761.992188,0.00019551,2]
[408338704,1773450633870,-761.992188,0.00019551,2]
[408338705,1773450633880,-1383.0,0.00019551,2]
[408338706,1773450633891,-621.23306108,0.00019616,2]
[408338707,1773450633901,-493.70330006,0.000199,2]
[408338708,1773450633912,-585.58706413,0.000199,2]
[408338709,1773450633925,-163.73,0.0001994,2]
[408338710,1773450633935,-500.0,0.00019949,2]
[408338711,1773450633944,-500.0,0.00019949,2]
[408338712,1773450633954,-500.0,0.00019949,2]
[408338713,1773450633964,-500.0,0.00019949,2]
[408338714,1773450633973,-500.0,0.00019949,2]
[408338715,1773450633983,-926.815052,0.00019949,2]
[408338716,1773450633993,-926.815052,0.00019949,2]
[408338717,1773450634003,-926.815052,0.00019949,2]
[408338718,1773450634013,-926.815052,0.00019949,2]
[408338719,1773450634023,-3102.672497,0.00019949,2]